fUST/lending_fUST_20251217
["ID","MTS","AMOUNT","RATE_DAILY","PERIOD"]
[398807845,1765910996701,-614.08,0.00037441,120]
[398807846,1765910996745,-500.0,0.00037441,120]
[398807847,1765910996788,-653.31,0.00037441,120]
[398807848,1765910996832,-1858.8,0.00037441,120]
[398807849,1765910996875,-614.08,0.00037441,120]
[398807850,1765910996918,-500.0,0.00037441,120]
[398807851,1765910996960,-665.75,0.00037441,120]
[398807852,1765910997004,-653.31,0.00037441,120]
[398807853,1765910997048,-1858.8,0.00037441,120]
[398807854,1765910997091,-614.24250105,0.00037441,120]
[398807855,1765910997134,-500.0,0.00037441,120]
[398807856,1765910997366,-665.75,0.00037441,120]
[398807857,1765910997411,-1858.8,0.00037441,120]
[398807858,1765910997455,-653.31,0.00037441,120]
[398807859,1765910997500,-500.0,0.00037441,120]
[398807860,1765910997543,-665.75,0.00037441,120]
[398807861,1765910997584,-653.31,0.00037441,120]
[398807862,1765910997625,-1858.8,0.00037441,120]
[398807863,1765910997666,-500.0,0.00037441,120]
[398807864,1765910997706,-665.75,0.00037441,120]
[398807865,1765910997743,-653.31,0.00037441,120]
[398807866,1765910997779,-1858.8,0.00037441,120]
[398807867,1765910997816,-500.0,0.00037441,120]
[398807868,1765910997855,-665.75,0.00037441,120]
[398807869,1765910997896,-653.31,0.00037441,120]
[398807870,1765910997936,-1858.8,0.00037441,120]
[398807871,1765910997982,-653.31,0.00037441,120]
[398807872,1765910998024,-206.11222804,0.00037441,120]
[398807873,1765910998062,-665.75,0.00037441,120]
[398807874,1765910998105,-1858.8,0.00037441,120]
[398807875,1765910998144,-665.75,0.00037441,120]
[398807876,1765910998184,-653.31,0.00037441,120]
[398807877,1765910998225,-1858.8,0.00037441,120]
[398807878,1765910998266,-500.0,0.00037441,120]
[398807879,1765910998309,-665.75,0.00037441,120]
[398807880,1765910998350,-653.31,0.00037441,120]
[398807881,1765910998391,-1858.8,0.00037441,120]
[398807882,1765910998430,-500.0,0.00037441,120]
[398807883,1765910998469,-1153.85,0.00037441,120]
[398807884,1765910998508,-665.75,0.00037441,120]
[398807885,1765910998544,-653.31,0.00037441,120]
[398807886,1765910998582,-1858.8,0.00037441,120]
[398807887,1765910998620,-500.0,0.00037441,120]
[398807888,1765910998656,-1153.85,0.00037441,120]
[398807889,1765910998692,-665.75,0.00037441,120]
[398807890,1765910998730,-653.31,0.00037441,120]
[398807891,1765910998768,-1858.8,0.00037441,120]
[398807892,1765910998804,-230.22298875,0.00037441,120]
[398807893,1765910998842,-1153.85,0.00037441,120]
[398807894,1765910998878,-665.75,0.00037441,120]
[398807895,1765910998914,-653.31,0.00037441,120]
[398807896,1765910998950,-1858.8,0.00037441,120]
[398807897,1765910998988,-1153.85,0.00037441,120]
[398807898,1765910999028,-665.75,0.00037441,120]
[398807899,1765910999072,-653.34901505,0.00037441,120]
[398807900,1765910999121,-1858.8,0.00037441,120]
[398807901,1765910999164,-1153.85,0.00037441,120]
[398807902,1765910999211,-665.75,0.00037441,120]
[398807903,1765910999256,-1858.8,0.00037441,120]
[398807904,1765910999298,-1153.85,0.00037441,120]
[398807905,1765910999341,-665.75,0.00037441,120]
[398807906,1765910999388,-1153.85,0.00037441,120]
[398807907,1765910999434,-1255.72,0.00037441,120]
[398807908,1765910999478,-1858.8,0.00037441,120]
[398807909,1765910999522,-665.75,0.00037441,120]
[398807910,1765910999565,-1153.85,0.00037441,120]
[398807911,1765910999609,-665.75,0.00037441,120]
[398807912,1765910999651,-1255.72,0.00037441,120]
[398807913,1765910999690,-1153.85,0.00037441,120]
[398807914,1765910999727,-665.75,0.00037441,120]
[398807915,1765910999762,-1255.72,0.00037441,120]
[398807916,1765910999798,-1858.8,0.00037441,120]
[398807917,1765910999835,-1153.85,0.00037441,120]
[398807918,1765910999871,-665.89371962,0.00037441,120]
[398807919,1765910999910,-1255.72,0.00037441,120]
[398807920,1765910999948,-1858.8,0.00037441,120]
[398807921,1765910999986,-1153.85,0.00037441,120]
[398807922,1765911000026,-1255.72,0.00037441,120]
[398807923,1765911000071,-1858.8,0.00037441,120]
[398807924,1765911000124,-1153.85,0.00037441,120]
[398807925,1765911000172,-1255.72,0.00037441,120]
[398807926,1765911000218,-1858.8,0.00037441,120]
[398807927,1765911000261,-1153.85,0.00037441,120]
[398807928,1765911000302,-1255.72,0.00037441,120]
[398807929,1765911000344,-1858.8,0.00037441,120]
[398807930,1765911000386,-1153.85,0.00037441,120]
[398807931,1765911000431,-1255.72,0.00037441,120]
[398807932,1765911000476,-1858.88708467,0.00037441,120]
[398807933,1765911000515,-1153.85,0.00037441,120]
[398807934,1765911000560,-1255.72,0.00037441,120]
[398807935,1765911000602,-1153.85,0.00037441,120]
[398807936,1765911000643,-1255.72,0.00037441,120]
[398807937,1765911000684,-1153.85,0.00037441,120]
[398807938,1765911000723,-1255.72,0.00037441,120]
[398807939,1765911000761,-1153.85,0.00037441,120]
[398807940,1765911000800,-500.0,0.00037441,120]
[398807941,1765911000842,-1255.72,0.00037441,120]
[398807942,1765911000883,-1153.85,0.00037441,120]
[398807943,1765911000924,-500.0,0.00037441,120]
[398807944,1765911000965,-1255.72,0.00037441,120]
[398807945,1765911001009,-1153.85,0.00037441,120]
[398807946,1765911001049,-500.0,0.00037441,120]
[398807947,1765911001091,-1255.72,0.00037441,120]
[398807948,1765911001133,-1153.85,0.00037441,120]
[398807949,1765911001177,-500.0,0.00037441,120]
[398807950,1765911001221,-1255.72,0.00037441,120]
[398807951,1765911001447,-1153.85,0.00037441,120]
[398807952,1765911001493,-500.0,0.00037441,120]
[398807953,1765911001537,-1255.72,0.00037441,120]
[398807954,1765911001581,-1153.85,0.00037441,120]
[398807955,1765911001623,-2614.47,0.00037441,120]
[398807956,1765911001666,-500.0,0.00037441,120]
[398807957,1765911001706,-1255.72,0.00037441,120]
[398807958,1765911001747,-1153.85366757,0.00037441,120]
[398807959,1765911001788,-500.0,0.00037441,120]
[398807960,1765911001833,-2614.47,0.00037441,120]
[398807961,1765911001875,-1255.72,0.00037441,120]
[398807962,1765911001917,-2614.47,0.00037441,120]
[398807963,1765911001957,-500.0,0.00037441,120]
[398807964,1765911001997,-1255.72,0.00037441,120]
[398807965,1765911002039,-2614.47,0.00037441,120]
[398807966,1765911002078,-500.0,0.00037441,120]
[398807967,1765911002123,-1255.72,0.00037441,120]
[398807968,1765911002165,-500.0,0.00037441,120]
[398807969,1765911002208,-1255.72,0.00037441,120]
[398807970,1765911002253,-2614.47,0.00037441,120]
[398807971,1765911002299,-500.0,0.00037441,120]
[398807972,1765911002343,-500.0,0.00037441,120]
[398807973,1765911002386,-1255.72,0.00037441,120]
[398807974,1765911002443,-2614.47,0.00037441,120]
[398807975,1765911002491,-500.0,0.00037441,120]
[398807976,1765911002535,-1255.72,0.00037441,120]
[398807977,1765911002575,-500.0,0.00037441,120]
[398807978,1765911002615,-2614.47,0.00037441,120]
[398807979,1765911002653,-1255.83822265,0.00037441,120]
[398807980,1765911002691,-500.0,0.00037441,120]
[398807981,1765911002731,-500.0,0.00037441,120]
[398807982,1765911002772,-2614.47,0.00037441,120]
[398807983,1765911002811,-500.0,0.00037441,120]
[398807984,1765911002850,-500.0,0.00037441,120]
[398807985,1765911002889,-2614.47,0.00037441,120]
[398807986,1765911002926,-500.0,0.00037441,120]
[398807987,1765911002980,-500.0,0.00037441,120]
[398807988,1765911003025,-2614.47,0.00037441,120]
[398807989,1765911003067,-500.0,0.00037441,120]
[398807990,1765911003108,-500.0,0.00037441,120]
[398807991,1765911003152,-2614.47,0.00037441,120]
[398807992,1765911003196,-500.0,0.00037441,120]
[398807993,1765911003242,-2614.47,0.00037441,120]
[398807994,1765911003286,-500.0,0.00037441,120]
[398807995,1765911003332,-500.0,0.00037441,120]
[398807996,1765911003377,-2614.47,0.00037441,120]
[398807997,1765911003471,-500.0,0.00037441,120]
[398807998,1765911003546,-500.0,0.00037441,120]
[398807999,1765911003623,-2614.47,0.00037441,120]
[398808000,1765911003695,-352.98,0.00037441,120]
[398808001,1765911003766,-500.0,0.00037441,120]
[398808002,1765911003834,-2614.47,0.00037441,120]
[398808003,1765911003909,-598.17,0.00037441,120]
[398808004,1765911003983,-500.0,0.00037441,120]
[398808005,1765911004053,-7878.14,0.00037441,120]
[398808006,1765911004120,-500.0,0.00037441,120]
[398808007,1765911004185,-2614.47,0.00037441,120]
[398808008,1765911004248,-500.0,0.00037441,120]
[398808009,1765911004309,-598.17,0.00037441,120]
[398808010,1765911004368,-500.0,0.00037441,120]
[398808011,1765911004436,-7878.14,0.00037441,120]
[398808012,1765911004499,-500.0,0.00037441,120]
[398808013,1765911004562,-7549.89,0.00037441,120]
[398808014,1765911004624,-598.17,0.00037441,120]
[398808015,1765911004686,-500.0,0.00037441,120]
[398808016,1765911004744,-7878.14,0.00037441,120]
[398808017,1765911004801,-2614.47,0.00037441,120]
[398808018,1765911004856,-500.0,0.00037441,120]
[398808019,1765911004915,-598.17,0.00037441,120]
[398808020,1765911004979,-7549.89,0.00037441,120]
[398808021,1765911005036,-7878.14,0.00037441,120]
[398808022,1765911005095,-2614.47,0.00037441,120]
[398808023,1765911005153,-500.0,0.00037441,120]
[398808024,1765911005212,-327.7628854,0.00037441,120]
[398808036,1765911011091,-3000.0,0.000185,30]
[398808037,1765911011137,-3000.0,0.0001851,30]
[398808038,1765911011181,-3000.0,0.0001852,30]
[398808039,1765911011225,-3000.0,0.0001853,30]
[398808040,1765911011269,-3000.0,0.0001854,30]
[398808041,1765911011312,-3000.0,0.0001855,30]
[398808042,1765911011355,-3000.0,0.0001856,30]
[398808043,1765911011400,-3000.0,0.0001857,30]
[398808044,1765911011445,-3000.0,0.0001858,30]
[398808045,1765911011488,-3000.0,0.0001859,30]
[398808046,1765911011531,-5664.116671,0.000186,30]
[398808047,1765911011576,-198.08824625,0.00019,30]
[398808048,1765911011626,-1117.99234069,0.0002,120]
[398808049,1765911011670,-333.33333333,0.00020125,25]
[398808050,1765911011717,-646.26666667,0.00020141,25]
[398808051,1765911011760,-400.0,0.000202,30]
[398808052,1765911011805,-179.6722667,0.000205,32]
[398808053,1765911011850,-234.48243753,0.000205,32]
[398808054,1765911011894,-227.6731749,0.000205,32]
[398808055,1765911011939,-333.33333333,0.000205,32]
[398808056,1765911011981,-646.26666667,0.00020521,32]
[398808057,1765911012026,-197.85680626,0.00020548,32]
[398808058,1765911012070,-242.87900219,0.00020583,32]
[398808059,1765911012115,-333.33333333,0.00020874,40]
[398808060,1765911012157,-646.26666667,0.00020901,40]
[398808061,1765911012201,-603.0,0.00021,30]
[398808062,1765911012247,-234.48243753,0.00021249,48]
[398808063,1765911012294,-179.6722667,0.00021249,48]
[398808064,1765911012336,-227.6731749,0.00021249,48]
[398808065,1765911012379,-333.33333333,0.00021249,48]
[398808066,1765911012426,-646.26666667,0.00021281,48]
[398808067,1765911012480,-197.85680626,0.00021323,48]
[398808068,1765911012528,-242.87900219,0.00021375,48]
[398808069,1765911012576,-331.84308806,0.00021624,56]
[398808070,1765911012620,-333.33333333,0.00021624,56]
[398808071,1765911012662,-646.26666667,0.00021662,56]
[398808072,1765911012704,-215.42222221,0.00021662,56]
[398808073,1765911012746,-208.54760022,0.0002171,56]
[398808074,1765911012877,-179.6722667,0.00021999,63]
[398808075,1765911012919,-234.48243753,0.00021999,63]
[398808076,1765911012959,-227.6731749,0.00021999,63]
[398808077,1765911013001,-333.33333333,0.00021999,63]
[398808078,1765911013043,-646.26666667,0.00022042,63]
[398808079,1765911013085,-197.85680626,0.00022097,63]
[398808080,1765911013127,-242.87900219,0.00022167,63]
[398808081,1765911013170,-333.33333333,0.00022374,71]
[398808082,1765911013212,-646.26666667,0.00022422,71]
[398808083,1765911013257,-234.48243753,0.00022749,79]
[398808084,1765911013298,-179.6722667,0.00022749,79]
[398808085,1765911013341,-227.6731749,0.00022749,79]
[398808086,1765911013385,-333.33333333,0.00022749,79]
[398808087,1765911013438,-646.26666667,0.00022802,79]
[398808088,1765911013485,-197.85680626,0.00022871,79]
[398808089,1765911013530,-242.87900219,0.00022959,79]
[398808090,1765911013784,-333.33333333,0.00023124,86]
[398808091,1765911013827,-646.26666667,0.00023183,86]
[398808092,1765911013870,-227.6731749,0.00023499,94]
[398808093,1765911013912,-234.48243753,0.00023499,94]
[398808094,1765911013955,-179.6722667,0.00023499,94]
[398808095,1765911013997,-333.33333333,0.00023499,94]
[398808096,1765911014040,-646.26666667,0.00023563,94]
[398808097,1765911014082,-227.67317488,0.00023615,30]
[398808098,1765911014127,-197.85680626,0.00023645,94]
[398808099,1765911014176,-163.99652781,0.00023708,30]
[398808100,1765911014221,-163.98531892,0.00023708,30]
[398808101,1765911014266,-197.85680623,0.00023708,30]
[398808102,1765911014308,-208.54760021,0.00023708,30]
[398808103,1765911014351,-242.87900219,0.0002375,94]
[398808104,1765911014395,-500.0,0.000238,20]
[398808105,1765911014443,-242.87900215,0.00023827,30]
[398808106,1765911014490,-333.33333333,0.00023874,102]
[398808107,1765911014533,-646.26666667,0.00023943,102]
[398808108,1765911014575,-150.0,0.00024,120]
[398808109,1765911014618,-331.84308806,0.00024248,110]
[398808110,1765911014661,-179.6722667,0.00024248,110]
[398808111,1765911014703,-234.48243753,0.00024248,110]
[398808112,1765911014746,-333.33333333,0.00024248,110]
[398808113,1765911014796,-4688.4189868,0.00025,120]
[398808114,1765911014840,-150.0,0.00025,120]
[398808115,1765911014882,-154.09148866,0.00025,30]
[398808116,1765911014930,-150.0,0.00026,120]
[398808117,1765911014977,-234.0,0.00026822,22]
[398808118,1765911015021,-1000.0,0.00026978,30]
[398808119,1765911015066,-1000.0,0.00026978,30]
[398808120,1765911015111,-1000.0,0.00026978,30]
[398808121,1765911015155,-2000.0,0.00027,40]
[398808122,1765911015202,-150.0,0.00027,120]
[398808123,1765911015252,-269.0,0.00027918,26]
[398808124,1765911015296,-192.6496393,0.00027921,30]
[398808125,1765911015341,-192.6496393,0.00027921,30]
[398808126,1765911015384,-384.7945487,0.00027921,30]
[398808127,1765911015433,-385.2992786,0.00027921,30]
[398808128,1765911015482,-150.0,0.00028,120]
[398808129,1765911015529,-285.63604377,0.0002849,120]
[398808130,1765911015578,-793.90059342,0.0002876,120]
[398808131,1765911015622,-459.11282,0.00028767,60]
[398808132,1765911015666,-1900.0,0.00029,20]
[398808133,1765911015709,-150.0,0.00029,120]
[398808134,1765911015754,-363090.60595029,0.00029,120]
[398808135,1765911015800,-397.97955209,0.00029,120]
[398808136,1765911015843,-130743.73151379,0.00029,120]
[398808137,1765911015885,-196764.46147136,0.00029,120]
[398808138,1765911015942,-236.0,0.00029014,32]
[398808139,1765911016003,-1000.0,0.00029676,30]
[398808140,1765911016055,-1000.0,0.00029676,30]
[398808141,1765911016103,-1000.0,0.00029676,30]
[398808142,1765911016151,-715.0,0.00029676,30]
[398808143,1765911016196,-901.1636363,0.00029703,30]
[398808144,1765911016242,-1380.1439764,0.000298,120]
[398808145,1765911016288,-247430.22014526,0.0003,30]
[398808146,1765911016333,-1777.40252763,0.0003,120]
[398808147,1765911016380,-1000.0,0.0003,120]
[398808148,1765911016428,-382.24402,0.0003,120]
[398808149,1765911016478,-3000.0,0.0003,20]
[398808150,1765911016526,-343.41291307,0.0003,30]
[398808151,1765911016569,-150.0,0.0003,120]
[398808152,1765911016612,-198.08824625,0.0003,120]
[398808153,1765911016656,-32687.42361658,0.0003,30]
[398808154,1765911016701,-1002.59,0.0003,30]
[398808155,1765911016743,-154.09148866,0.0003,60]
[398808156,1765911016786,-1002.59,0.0003006,30]
[398808157,1765911016828,-207.0,0.0003011,38]
[398808158,1765911016871,-234.4983631,0.00030136,120]
[398808159,1765911016914,-1000.0,0.00030136,120]
[398808160,1765911016957,-864.853534,0.00030137,120]
[398808161,1765911017001,-1186.0,0.00030137,120]
[398808162,1765911017044,-1000.0,0.00030164,120]
[398808163,1765911017089,-1000.0,0.00030191,120]
[398808164,1765911017132,-1000.0,0.00030219,120]
[398808165,1765911017176,-1000.0,0.00030246,120]
[398808166,1765911017221,-1000.0,0.00030273,120]
[398808167,1765911017265,-1000.0,0.00030301,120]
[398808168,1765911017309,-1000.0,0.00030328,120]
[398808169,1765911017353,-1000.0,0.00030356,120]
[398808170,1765911017396,-1000.0,0.00030383,120]
[398808171,1765911017443,-1000.0,0.0003041,120]
[398808172,1765911017487,-1000.0,0.00030438,120]
[398808173,1765911017535,-1000.0,0.00030465,120]
[398808174,1765911017581,-1000.0,0.00030493,120]
[398808175,1765911017626,-1000.0,0.0003052,120]
[398808176,1765911017672,-1000.0,0.00030547,120]
[398808177,1765911017715,-864.08226864,0.00030575,120]
[398808178,1765911017762,-639.1932622,0.00030644,30]
[398808179,1765911017806,-375.3470445,0.00030644,30]
[398808180,1765911017849,-375.3470445,0.00030644,30]
[398808181,1765911017895,-375.3470445,0.00030644,30]
[398808182,1765911017941,-375.3470445,0.00030644,30]
[398808183,1765911017985,-375.3470445,0.00030644,30]
[398808184,1765911018218,-510.4168719,0.00030644,30]
[398808185,1765911018263,-198.08824625,0.000309,120]
[398808186,1765911018306,-300.0,0.00031,120]
[398808187,1765911018350,-159.05198001,0.00031,120]
[398808188,1765911018391,-160.0,0.00031,120]
[398808189,1765911018439,-182.0,0.00031205,44]
[398808190,1765911018483,-500.0,0.000314,120]
[398808191,1765911018528,-442.2986157,0.00031758,30]
[398808192,1765911018572,-198.08824625,0.000318,120]
[398808193,1765911018614,-10100.0,0.00032,20]
[398808194,1765911018658,-300.0,0.00032,120]
[398808195,1765911018702,-1000.0,0.00032,120]
[398808196,1765911018745,-1000.0,0.00032,120]
[398808197,1765911018787,-159.0,0.00032301,52]
[398808198,1765911018828,-10000.0,0.000324,120]
[398808199,1765911018869,-154.0239738,0.00032562,30]
[398808200,1765911018910,-153.0,0.00032562,30]
[398808201,1765911018955,-153.0,0.00032562,30]
[398808202,1765911018995,-153.0,0.00032562,30]
[398808203,1765911019043,-1000.0,0.00032644,30]
[398808204,1765911019090,-1000.0,0.00032644,30]
[398808205,1765911019136,-1000.0,0.00032644,30]
[398808206,1765911019181,-1303.31,0.00032876,120]
[398808207,1765911019225,-151.0,0.00032877,31]
[398808208,1765911019268,-151.0,0.00032877,31]
[398808209,1765911019311,-151.0,0.00032877,31]
[398808210,1765911019354,-281.491268,0.00032877,31]
[398808211,1765911019401,-7426.93409686,0.00033,30]
[398808212,1765911019444,-300.0,0.00033,120]
[398808213,1765911019488,-500.0,0.00033,120]
[398808214,1765911019531,-500.38,0.0003315,30]
[398808215,1765911019574,-568.48652579,0.000332,117]
[398808216,1765911019617,-568.48652579,0.000332,117]
[398808217,1765911019661,-568.48652579,0.000332,117]
[398808218,1765911019702,-568.48652579,0.000332,117]
[398808219,1765911019746,-568.48652579,0.000332,117]
[398808220,1765911019790,-202.0,0.00033397,60]
[398808221,1765911019833,-1303.31,0.00033561,120]
[398808222,1765911019874,-500.38,0.00033972,31]
[398808223,1765911019917,-300.0,0.00034,120]
[398808224,1765911019958,-300.0,0.00034,120]
[398808225,1765911019999,-26730.0,0.00034,120]
[398808226,1765911020042,-1303.31,0.00034246,120]
[398808227,1765911020085,-784.7,0.00034327,60]
[398808228,1765911020128,-965.79,0.00034327,60]
[398808229,1765911020173,-784.7,0.00034427,60]
[398808230,1765911020218,-965.79,0.00034427,60]
[398808231,1765911020263,-200.0,0.0003443,38]
[398808232,1765911020304,-1200.19729428,0.00034473,120]
[398808233,1765911020347,-15182.0,0.000345,120]
[398808234,1765911020388,-25391.40272358,0.000345,30]
[398808235,1765911020433,-784.7,0.00034527,60]
[398808236,1765911020478,-965.79,0.00034527,60]
[398808237,1765911020521,-784.7,0.00034627,60]
[398808238,1765911020566,-661.97,0.00034699,60]
[398808239,1765911020610,-784.7,0.00034727,60]
[398808240,1765911020654,-965.79,0.00034727,60]
[398808241,1765911020696,-500.38,0.00034794,32]
[398808242,1765911020739,-661.97,0.00034799,60]
[398808243,1765911020782,-784.7,0.00034827,60]
[398808244,1765911020826,-965.79,0.00034827,60]
[398808245,1765911020868,-1444.0,0.00034849,120]
[398808246,1765911020911,-661.99667,0.00034899,60]
[398808247,1765911020953,-151.0,0.00034911,30]
[398808248,1765911021000,-784.7,0.00034927,60]
[398808249,1765911021046,-1303.31,0.00034931,120]
[398808250,1765911021092,-162.0,0.00035,120]
[398808251,1765911021135,-300.0,0.00035,120]
[398808252,1765911021178,-1010.0,0.00035,120]
[398808253,1765911021224,-500.0,0.00035,120]
[398808254,1765911021268,-336.0,0.00035,60]
[398808255,1765911021311,-150.0,0.00035,69]
[398808256,1765911021354,-526.41090899,0.00035,20]
[398808257,1765911021398,-7803.53253581,0.00035,30]
[398808258,1765911021444,-213.0,0.00035041,74]
[398808259,1765911021488,-784.7,0.00035127,60]
[398808260,1765911021532,-965.79,0.00035127,60]
[398808261,1765911021575,-864.853534,0.0003516,120]
[398808262,1765911021619,-784.7,0.00035327,60]
[398808263,1765911021664,-784.7,0.00035527,60]
[398808264,1765911021707,-162.0,0.000356,120]
[398808265,1765911021750,-1303.31,0.00035616,120]
[398808266,1765911021793,-500.38,0.00035616,33]
[398808267,1765911021839,-784.7,0.00035627,60]
[398808268,1765911021884,-784.7,0.00035727,60]
[398808269,1765911021928,-500.0,0.0003576,30]
[398808270,1765911021972,-504.40373135,0.0003576,30]
[398808271,1765911022014,-500.0,0.0003576,30]
[398808272,1765911022056,-500.0,0.0003576,30]
[398808273,1765911022099,-500.0,0.0003576,30]
[398808274,1765911022142,-500.0,0.0003576,30]
[398808275,1765911022187,-500.0,0.0003576,30]
[398808276,1765911022230,-500.0,0.0003576,30]
[398808277,1765911022274,-500.0,0.0003576,30]
[398808278,1765911022316,-500.0,0.0003576,30]
[398808279,1765911022543,-500.0,0.0003576,30]
[398808280,1765911022587,-500.0,0.0003576,30]
[398808281,1765911022632,-502.15977136,0.0003576,30]
[398808282,1765911022678,-597.7907827,0.00035875,30]
[398808283,1765911022721,-200.0,0.000359,120]
[398808284,1765911022763,-244.65634,0.000359,120]
[398808285,1765911022807,-1040.10247,0.000359,120]
[398808286,1765911022851,-200.0,0.000359,120]
[398808287,1765911022896,-1186.88774874,0.00036,20]
[398808288,1765911022942,-3051.10412421,0.00036,120]
[398808289,1765911022987,-300.0,0.00036,120]
[398808290,1765911023032,-300.0,0.00036,120]
[398808291,1765911023077,-1000.0,0.00036,120]
[398808292,1765911023122,-1000.0,0.00036,120]
[398808293,1765911023166,-449.0,0.00036,30]
[398808294,1765911023213,-200.0,0.00036064,120]
[398808295,1765911023262,-784.7,0.00036127,60]
[398808296,1765911023309,-162.0,0.000362,120]
[398808297,1765911023355,-1508.12002,0.000362,22]
[398808298,1765911023404,-200.0,0.00036218,120]
[398808299,1765911023453,-1303.31,0.00036301,120]
[398808300,1765911023500,-500.38,0.00036438,34]
[398808301,1765911023544,-1268.56296294,0.00036473,120]
[398808302,1765911023590,-2051.17823371,0.000365,120]
[398808303,1765911023634,-20283.0,0.000367,120]
[398808304,1765911023677,-1500.0,0.000367,22]
[398808305,1765911023721,-2002.0,0.00036722,30]
[398808306,1765911023764,-2075.72795522,0.00036722,31]
[398808307,1765911023806,-200.0,0.0003677,45]
[398808308,1765911023849,-31150.55035856,0.00036789,60]
[398808309,1765911023893,-152.67,0.000368,120]
[398808310,1765911023936,-150.0,0.000368,120]
[398808311,1765911023983,-162.0,0.000369,120]
[398808312,1765911024029,-253.0,0.000369,120]
[398808313,1765911024074,-169.0,0.000369,120]
[398808314,1765911024118,-170.0,0.000369,120]
[398808315,1765911024160,-171.0,0.000369,120]
[398808316,1765911024207,-1303.31,0.00036986,120]
[398808317,1765911024251,-300.0,0.00037,120]
[398808318,1765911024296,-300.0,0.00037,120]
[398808319,1765911024340,-152.69542868,0.00037,120]
[398808320,1765911024385,-1000.0,0.00037,120]
[398808321,1765911024436,-1000.0,0.00037,120]
[398808322,1765911024482,-163.0,0.00037233,97]
[398808323,1765911024527,-500.38,0.0003726,35]
[398808324,1765911024571,-150.0,0.00037441,120]
[398808325,1765911024614,-150.0,0.00037441,120]
[398808326,1765911024660,-150.0,0.00037441,120]
[398808327,1765911024707,-150.0,0.00037441,120]
[398808328,1765911024751,-170.45744331,0.00037441,120]
[398808329,1765911025919,-680.80939615,0.0003748,30]
[398808330,1765911025964,-162.0,0.000375,120]
[398808331,1765911026011,-1303.31,0.00037671,120]
[398808332,1765911026059,-2002.0,0.00037752,30]
[398808333,1765911026104,-200.0,0.000379,120]
[398808334,1765911026150,-1040.10247,0.000379,120]
[398808335,1765911026198,-455.0,0.000379,30]
[398808336,1765911026245,-200.0,0.000379,120]
[398808337,1765911026291,-212.59,0.00037973,30]
[398808338,1765911026336,-300.0,0.00038,120]
[398808339,1765911026385,-300.0,0.00038,120]
[398808340,1765911026433,-1000.0,0.00038,120]
[398808341,1765911026481,-1000.0,0.00038,120]
[398808342,1765911026528,-500.38,0.00038082,36]
[398808343,1765911026574,-162.0,0.000381,120]
[398808344,1765911026621,-415.38,0.00038113,60]
[398808345,1765911026670,-498.46,0.00038113,60]
[398808346,1765911026718,-832.88,0.00038175,60]
[398808347,1765911026768,-415.38,0.00038213,60]
[398808348,1765911026816,-498.715,0.00038213,60]
[398808349,1765911026864,-833.12875,0.00038275,60]
[398808350,1765911026911,-415.38,0.00038313,60]
[398808351,1765911026960,-1303.31,0.00038356,120]
[398808352,1765911027007,-609.0,0.00038356,120]
[398808353,1765911027054,-251.089337,0.00038356,120]
[398808354,1765911027101,-251.089337,0.00038356,120]
[398808355,1765911027150,-251.089337,0.00038356,120]